Cogmind - Beta 12 @@@ ROGUE MODE // 2023.03.29 @ 14:41:39 Player: btmk16 Result: Destroyed by D-53 Grenadier with Mini Grenade Launcher Performance ------------- Evolutions (0) 0 Regions Visited (2) 400 Robots Destroyed (19) 95 Value Destroyed (269) 269 Prototype IDs (3) 60 Alien Tech Used (0) 0 Bonus (0) 0 TOTAL SCORE: 824 Bonus ------- None Cogmind --------- Core Integrity 0/250 Matter 300/300 Energy 100/100 System Corruption 0% Temperature Warm (113) Movement Core (50) Location -10/Mines Parts ------- > --- POWER (1) -------- (None) > --- PROPULSION (2) --- (None) > --- UTILITY (2) ------ (None) > --- WEAPON (2) ------- (None) > --- INVENTORY (5) ---- Compact Wheel Armored Wheel Armored Wheel Armored Wheel Experimental Sensor Array Peak State ------------ > --- POWER ------------ Light Ion Engine > --- PROPULSION ------- Light Treads Light Treads > --- UTILITY ---------- Large Storage Unit Large Matter Pod > --- WEAPON ----------- Medium Laser Light Cannon > --- INVENTORY -------- Ion Engine Light Treads Light Treads Aluminum Leg Compact Wheel Armored Wheel Armored Wheel Armored Wheel Armored Wheel Small Storage Unit Experimental Sensor Array Light Armor Plating Small Laser [Rating: 9] Favorites ----------- Power Light Ion Engine Engine Light Ion Engine Propulsion Light Treads Treads Light Treads Wheel Wheel Utility Large Storage Unit Device Tractor Beam Storage Large Storage Unit Weapon Assault Rifle Energy Gun Medium Laser Ballistic Gun Assault Rifle Ballistic Cannon Light Cannon Build | -11 -10 -10 ------- Run | Jun Mat Min Slots Evolved . | . . . Power . | . . . Propulsion . | . . . Utility . | . . . Weapon . | . . . Parts Attached 20 | 8 9 3 Power 2 | 1 1 . Engine 2 | 1 1 . Core . | . . . Reactor . | . . . Propulsion 7 | 3 3 1 Treads 6 | 2 3 1 Leg . | . . . Wheel 1 | 1 . . Hover . | . . . Flight . | . . . Utility 4 | 2 2 . Device 1 | 1 . . Storage 3 | 1 2 . Processor . | . . . Hackware . | . . . Protection . | . . . Artifact . | . . . Weapon 7 | 2 3 2 Energy Gun 2 | 1 . 1 Energy Cannon . | . . . Ballistic Gun 4 | 1 3 . Ballistic Cannon 1 | . . 1 Launcher . | . . . Special Weapon . | . . . Impact Weapon . | . . . Slashing Weapon . | . . . Piercing Weapon . | . . . Special Melee Weapon . | . . . Unidentified Prototypes . | . . . Parts Lost 8 | . 2 6 Power 2 | . 1 1 Propulsion 2 | . . 2 Utility 1 | . 1 . Weapon 3 | . . 3 Highest Loss Streak 4 | . 1 4 To Critical Strikes . | . . . Average Slot Usage (%) 99 | . 99 99 Engine 13 | . 13 14 Treads 27 | . 27 28 Storage 27 | . 26 28 Energy Gun 4 | . . 11 Ballistic Gun 18 | . 27 3 Ballistic Cannon 4 | . . 11 Naked Turns 3 | . . 3 Heaviest Build 31 | 12 30 31 Greatest Support 40 | 40 40 40 Greatest Overweight (x) . | . . . Average Overweight (x) . | . . . Largest Inventory Capacity 15 | 8 15 15 Average Capacity 14 | 7 14 14 Most Carried 15 | 6 15 15 Average Carried 12 | 3 12 13 Final Capacity 15 | 8 15 5 Final Carried 15 | 6 15 5 Class Distribution -------------------- 100% | Mutant Dominant Class ---------------- Mutant | -10/Materials Mutant | -10/Mines Resources | -11 -10 -10 ----------- Run | Jun Mat Min Matter Collected 949 | 286 425 238 Remotely 107 | 107 . . Salvage Created 650 | 95 342 213 Parts 34 | 1 23 10 Haulers Intercepted 2 | . 2 . Recyclers Shooed 2 | . 2 . Parts Field Recycled . | . . . Retrieved Matter . | . . . Parts Self-Destructed . | . . . Prevented . | . . . Kills | -11 -10 -10 ------- Run | Jun Mat Min Combat Hostiles Destroyed 21 | . 7 14 Guns 17 | . 7 10 Cannons 4 | . . 4 Classes Destroyed 7 | 1 5 1 Worker 2 | . 2 . Builder 1 | . 1 . Hauler 2 | . 2 . Recycler 1 | 1 . . Swarmer 9 | . 5 4 Grunt 4 | . 2 2 Assembled 8 | . . 8 Best Kill Streak 6 | 1 3 6 Combat Bots Only 6 | . 3 6 Max Kills in Single Turn 1 | 1 1 1 Gunslinging . | . . . Exploded . | . . . Melee . | . . . Uniques/NPCs Destroyed . | . . . Combat | -11 -10 -10 -------- Run | Jun Mat Min Damage Taken 1112 | . 338 774 Core 260 | . 54 206 Absorbed by Shields . | . . . Core Remaining (%) 100 | 100 . . Volleys Fired 81 | 2 41 38 Largest 2 | 2 2 2 Hottest 85 | 60 40 85 Shots Fired 162 | 4 82 76 Gun 144 | 4 82 58 Cannon 18 | . . 18 Launcher . | . . . Special . | . . . Kinetic 141 | 2 82 57 Thermal 21 | 2 . 19 Explosive . | . . . Electromagnetic . | . . . Robot Hit Streak 10 | 1 9 10 Robot Miss Streak 3 | 1 3 2 Penetration Max . | . . . Secondary Targets 1 | . 1 . Max Gunslinging Chain 1 | . 1 . Shots Hit Robots 104 | 2 53 49 Core Hits 42 | 2 17 23 Critical Kills . | . . . Critical Parts Destroyed . | . . . Critical Strikes . | . . . Melee Attacks . | . . . Impact . | . . . Slashing . | . . . Piercing . | . . . Sneak Attacks . | . . . Combat Hostiles . | . . . Follow-up Attacks . | . . . Damage Inflicted 1344 | 21 661 662 Guns 1224 | 21 661 542 Cannons 120 | . . 120 Explosions . | . . . Melee . | . . . Ramming . | . . . Kinetic 1189 | 21 661 507 Thermal 155 | . . 155 Explosive . | . . . Electromagnetic . | . . . Impact . | . . . Slashing . | . . . Piercing . | . . . Highest Corruption . | . . . Average Corruption . | . . . Corruption Purged . | . . . Corruption Blocked . | . . . Overload Shots . | . . . Overflow Damage 8 | . . 8 Projectiles 8 | . . 8 Explosions . | . . . Melee . | . . . Knockbacks 1 | . . 1 Impact . | . . . Kinetic 1 | . . 1 Secondary . | . . . Self-Inflicted Damage . | . . . Shots . | . . . Rammed . | . . . Targets Rammed . | . . . Kicked . | . . . Crushed . | . . . Highest Temperature 192 | . 9 192 Average Temperature 69 | . 4 75 Received Heat Transfer 253 | . 87 166 Siege Activations . | . . . Robots Corrupted . | . . . Combat Hostiles . | . . . Parts Fried . | . . . Impact Corruptions . | . . . Robots Melted . | . . . Combat Hostiles . | . . . Parts Melted . | . . . Heat Transferred 444 | . . 444 Parts Sabotaged . | . . . Parts Stolen . | . . . Parts Stripped . | . . . Power Chain Reactions . | . . . Missiles Intercepted . | . . . Alert | -11 -10 -10 ------- Run | Jun Mat Min Peak Influence 175 | 5 175 87 Initial 37 | . 3 37 Average 40 | 2 42 40 Maximum Alert Level . | . . . Low Security (%) 100 | 100 100 100 Level 1 . | . . . Level 2 . | . . . Level 3 . | . . . Level 4 . | . . . Level 5 . | . . . High Security . | . . . Max Security . | . . . Squads Dispatched . | . . . Investigation . | . . . Extermination . | . . . Reinforcement . | . . . Assault . | . . . Garrison . | . . . Intercept . | . . . Searches Triggered . | . . . Construction Impeded . | . . . Haulers Reinforced . | . . . Active Scanning Responses . | . . . Cargo Convoy Interrupts . | . . . Stealth | -11 -10 -10 --------- Run | Jun Mat Min Distress Signals 4 | . 3 1 Communications Jammed . | . . . Distress Signals . | . . . Times Spotted 39 | . 19 20 Peak Tracking Total 10 | . 4 10 Tactical Retreats 3 | . 2 1 Traps | -11 -10 -10 ------- Run | Jun Mat Min Traps Triggered 1 | . 1 . Indirectly . | . . . Trap Hack Attempts . | . . . Triggered . | . . . Disarmed . | . . . Reprogrammed . | . . . Reused . | . . . Traps Extracted . | . . . Installed . | . . . Triggered . | . . . Machines | -11 -10 -10 ---------- Run | Jun Mat Min Machines Disabled . | . . . Max in Single Turn . | . . . Machines Repaired . | . . . Machines Sabotaged . | . . . Overloaded Fab Kills . | . . . Hacking | -11 -10 -10 --------- Run | Jun Mat Min Machines Accessed 8 | . 8 . Terminals 8 | . 8 . Fabricators . | . . . Repair Stations . | . . . Recycling Units . | . . . Scanalyzers . | . . . Garrison Access . | . . . Total Hacks 17 | . 17 . Successful 7 | . 7 . Failed 9 | . 9 . Catastrophic 1 | . 1 . Database Lockouts 1 | . 1 . Manual 15 | . 15 . Terminals 17 | . 17 . Fabricators . | . . . Repair Stations . | . . . Recycling Units . | . . . Scanalyzers . | . . . Garrison Access . | . . . Terminal Hacks 5 | . 5 . Robot Analysis 2 | . 2 . Prototype ID Bank 2 | . 2 . Branch Access Points 1 | . 1 . Fabricator Hacks . | . . . Repair Station Hacks . | . . . Recycling Unit Hacks . | . . . Scanalyzer . | . . . Garrison Access Hacks . | . . . Unauthorized Hacks 2 | . 2 . Terminals 2 | . 2 . Botnet 2 | . 2 . Fabricators . | . . . Repair Stations . | . . . Recycling Units . | . . . Scanalyzers . | . . . Garrison Access . | . . . Data Cores Recovered . | . . . Used . | . . . Hacking Detections 8 | . 8 . Full Trace Events . | . . . Feedback Events . | . . . Feedback Blocked . | . . . Robot Schematics Acquired . | . . . Robots Built . | . . . Authchips . | . . . Time . | . . . Total Robot Build Rating . | . . . Part Schematics Acquired . | . . . Parts Built . | . . . Authchips . | . . . Time . | . . . Total Part Build Rating . | . . . Parts Repaired . | . . . Time . | . . . Parts Recycled . | . . . Recycled Matter . | . . . Retrieved Matter . | . . . Retrieved Components . | . . . Parts Scanalyzed . | . . . Part Schematics Acquired . | . . . Parts Damaged . | . . . Bothacking | -11 -10 -10 ------------ Run | Jun Mat Min Used RIF Installer . | . . . Robots Hacked . | . . . Non-combat . | . . . Combat . | . . . Robot Hacks Applied . | . . . Relay Couplers Released . | . . . Fabnet Peak Effective % . | . . . Robots Rewired . | . . . Allies Hacked . | . . . Hacks Repelled . | . . . Allies | -11 -10 -10 -------- Run | Jun Mat Min Total Allies . | . . . Largest Group . | . . . Highest-Rated Group . | . . . Highest-Rated Ally . | . . . Total Orders . | . . . Ally Attacks . | . . . Total Damage . | . . . Kills . | . . . Allies Corrupted . | . . . Allies Melted . | . . . Intel | -11 -10 -10 ------- Run | Jun Mat Min Robot Analysis Total 2 | . 2 . Derelict Logs Recovered . | . . . Drone Launches . | . . . Drone Recoveries . | . . . Exploration | -11 -10 -10 ------------- Run | Jun Mat Min Turns Passed 2357 | 97 1436 824 Spaces Moved 1083 | 51 798 234 Core 5 | 3 . 2 Treads 1074 | 44 798 232 Legs . | . . . Wheels 4 | 4 . . Hover . | . . . Flight . | . . . Fastest Speed 50 | 50 160 50 Average Speed 159 | 147 160 159 Slowest Speed 160 | 160 160 160 Overloaded Moves . | . . . Propulsion Burnouts . | . . . Robots Hopped . | . . . Cave-ins Triggered . | . . . Exploration Rate (%) 49 | 4 99 44 Regions Visited 2 Branch Regions 1 Pre-discovered Areas . | . . . Known Exits Taken 1 | . 1 . Unknown Exits Taken 1 | 1 . . Scrap Searched 1 | . . 1 Spaces Dug . | . . . Terrain Destroyed . | . . . Melee . | . . . Projectile . | . . . AOE . | . . . Terrain Rammed . | . . . Walls Destroyed . | . . . Machines Disabled . | . . . Actions | -11 -10 -10 --------- Run | Jun Mat Min Total 1551 | 66 874 611 Wait 345 | . 15 330 Move 1081 | 50 797 234 Hop . | . . . Pick Up 17 | 5 9 3 Fast Attach 13 | 8 4 1 Attach 4 | . 2 2 Detach 2 | 1 1 . Swap 3 | . 3 . Drop 5 | . 2 3 Fire 81 | 2 41 38 Melee . | . . . Ram . | . . . Kick . | . . . Crush . | . . . Escape Stasis . | . . . Rewire . | . . . Trap . | . . . Miscellaneous . | . . . Route ------- -11/Junkyard -10/Materials (discovered 4 exits: [*Mat x3] / *Min) -10/Mines History --------- Turn | Location | Event 22 | -11/Junkyard | Discovered new exit (range 15) 98 | -11/Junkyard | Entered Materials 310 | -10/Materials | Build established: Mutant 355 | -10/Materials | Discovered new exit (range 14) 526 | -10/Materials | Central database locked down 720 | -10/Materials | Discovered new exit (range 4) 870 | -10/Materials | Identified exit to Mines 1225 | -10/Materials | Discovered new exit (range 16) 1534 | -10/Materials | Entered Mines 1580 | -10/Mines | Assembled infested the area 1585 | -10/Mines | Assisted by a Guerilla fighting off Assembled 2139 | -10/Mines | Found a damaged Exp. Sensor Array with a note attached 2143 | -10/Mines | Found Prototype Device 2330 | -10/Mines | Core integrity fell below 50% 2355 | -10/Mines | Released all parts (3) 2357 | -10/Mines | Core integrity fell below 20% 2358 | -10/Mines | Destroyed by D-53 Grenadier with Mini Grenade Launcher Last Messages --------------- 02330_ S-10 Pest destroyed. 02343_ K-01 Serf collects debris. 02348_ S-10 Pest destroyed. 02351_ K-01 Serf collects debris. 02351_ Acquired 14 matter. 02352_ K-01 Serf destroyed. 02352_ U-05 Engineer lays Concrete. 02352_ D-53 Grenadier knocked back. 02353_ Lgt. Cannon destroyed. 02353_ Lgt. Treads destroyed. 02353_ Lgt. Ion Engine destroyed. 02354_ Lgt. Treads destroyed. 02354_ U-05 Engineer lays Concrete. 02355_ Released Med. Laser. 02355_ Released Lrg. Matter Pod. 02355_ Released Lrg. Storage Unit. 02355_ Dropped Lgt. Treads. 02356_ U-05 Engineer lays Concrete. 02356_ Acquired Prototype Device. 02357_ U-05 Engineer lays Concrete. Map ----- +----------------------------------------------------+ | ????????????????????????????????????????? | | ????????????????????????????????????????? | | ????????????????????????????????????????? | | ????????????????????????????????????????? | | ????????????????????????????????????????? | | ????????????????????????????????????????? | | ??????####??????????????????????????????? | | ?????? #??????????????????????????????? | | ??????# #??????????????????????????????? | | ??????#% ??????????????????????????????? | | ??????# #??????????????????????????????? | | ??????# #??????????????????????????????? | | ??????# #??????????????????????????????? | | ??????# #??????????????????????????????? | | ??????# #??????????????????????????????? | | ??##### #??????????????????????????????? | | ??# #??????????????????????????????? | | ??# ### ####?????????????##????????????? | | ??# #?# #????????????? ????????????? | | ??# #?##### #?????##?????? #????????????? | | #?# #?????# #????## ##???? #????????????? | | ### #?????# #????# ##??? #????????????? | | ## #?????# ###### ### #????????????? | | ##????# #?# t##???????????? | | ###??#### #?## #???????????? | | #?????# #?# = @ #???????????? | | #### #?????# #?# = # #??? | | ##??####????## #?# ![ !=d #??? | | ???????????## ### *=!d #""" #??? | | ???????????# ## #?"" #??? | | ???????????# u ##??" ?????? | | ???????????# # # ##???? ???????? | | ???????????## ##########?????????????? | | ????????????## ##??????????????????????? | | ?????????????####???????????????????????? | | ????????????????????????????????????????? | | ????????????????????????????????????????? | | ????????????????????????????????????????? | | | | | | | | | | | | | | | | | | | | | | | | | +----------------------------------------------------+ Best States ------------- Heat Dissipation 25 Energy Generation 10 Energy Capacity 125 Matter Stores 450 Matter Capacity 450 Sight Range 16 Terrain Scan Density 10 Evasion (%) 44 Recoil Reduction 2 Item Schematics ----------------- None Robot Schematics ------------------ None Fabricated ------------ Nothing Alien Tech Used ----------------- None Achievements -------------- None Challenges ------------ None Game ------ Seed CloakingAerolevClaws Manual? 0 Play Time 00:11:18 Cumulative 605.0 hours Start 2023.03.29 @ 13:51:07 End 2023.03.29 @ 14:41:39 Sessions 1 Manual Loads 0 Difficulty Rogue Special Mode None Game No. 628 Rogue 627 Adventurer 0 Explorer 1 Win Type - Total 29 Types 20/0/6/3/0/0/0/0/0 Lore% 84 Gallery% 92 Achievement% 77 Wizard Run 0 Options --------- ASCII 0 Keyboard 1 Movement Vi Keybinds 0 Fullscreen 1 Font 18/SmallcapsGlow Map View 76x50 Tactical HUD 1 Map Filters NONE Filters NONE Steam 1 RUN: bbf364b7-c6ea-4f58-8ea8-4ea439f9a3a0